[Event "7th Uppsala Young Champions"]
[Site "Uppsala"]
[Date "2020.10.24"]
[Round "2.11"]
[White "Crevatin, Leo"]
[Black "Kruckenhauser, Arthur"]
[Result "1/2-1/2"]
[ECO "E44"]
[WhiteElo "2181"]
[BlackElo "2301"]
[Annotator "RC"]
[PlyCount "93"]
[EventDate "2020.10.23"]
[EventType "swiss"]
[EventCountry "SWE"]
[SourceTitle "playchess.com"]
[Source "ChessBase"]
[SourceQuality "1"]
[TimeControl "5400+30"]

1. d4 {[%emt 0:00:00]} Nf6 {[%emt 0:00:00]} 2. c4 {[%emt 0:00:00]} e6 {[%emt 0:00:00]} 3. Nc3 {[%emt 0:00:00]} Bb4 {[%emt 0:00:00]} 4. e3 {[%emt 0:00:00]} b6 {[%emt 0:00:10]} 5. Nge2 {[%emt 0:01:06]} Bb7 {[%emt 0:01:57]} 6. a3 {[%emt 0:01:03]} Be7 {[%emt 0:10:14]} 7. d5 {[%emt 0:04:54]} O-O {[%emt 0:04:25]} 8. Ng3 {[%emt 0:05:51]} Re8 {[%emt 0:03:14]} 9. Be2 {[%emt 0:02:08]} c6 {[%emt 0:11:29]} 10. e4 {[%emt 0:22:01]} cxd5 {[%emt 0:14:41]} 11. exd5 {[%emt 0:01:40]} Bf8 {[%emt 0:10:32]} 12. O-O {[%emt 0:02:26]} d6 {[%emt 0:01:49]} 13. Bg5 {[%emt 0:05:03]} Nbd7 {[%emt 0:02:27]} 14. dxe6 {[%emt 0:08:30]} fxe6 {[%emt 0:00:23]} 15. Bh5 {[%emt 0:01:44]} g6 {[%emt 0:01:25]} 16. Bf3 {[%emt 0:00:40]} Qc8 {[%emt 0:03:35]} 17. Rc1 {[%emt 0:06:56]} Be7 {[%emt 0:03:58]} 18. Re1 {[%emt 0:05:19]} Bxf3 {[%emt 0:03:58]} 19. Qxf3 {[%emt 0:00:09]} Rf8 {[%emt 0:00:29]} 20. Qe2 {[%emt 0:02:53]} e5 {[%emt 0:02:00]} 21. Rcd1 {[%emt 0:02:38]} Rf7 {[%emt 0:02:57]} 22. Bxf6 {[%emt 0:01:29]} Nxf6 {[%emt 0:00:24]} 23. Nd5 {[%emt 0:00:35]} Qc6 {[%emt 0:02:29]} 24. Nxf6+ {[%emt 0:00:22]} Rxf6 {[%emt 0:01:07]} 25. Ne4 {[%emt 0:00:15]} Rf4 {[%emt 0:00:23]} 26. f3 {[%emt 0:01:27]} Rd8 {[%emt 0:04:06]} 27. Qd3 {[%emt 0:02:42]} g5 {[%emt 0:01:32]} 28. h3 {[%emt 0:03:43]} Kg7 {[%emt 0:02:12]} 29. Qd5 {[%emt 0:04:02]} Qc8 {[%emt 0:01:10]} 30. b4 {[%emt 0:01:46]} Qf5 {[%emt 0:03:03]} 31. Ng3 {[%emt 0:02:59]} Qf7 {[%emt 0:02:00]} 32. Qxf7+ {[%emt 0:03:18]} Kxf7 {[%emt 0:00:10]} 33. Ne4 {[%emt 0:00:18]} Ke6 {[%emt 0:00:29]} 34. Kf2 {[%emt 0:02:05]} h5 {[%emt 0:00:50]} 35. g3 {[%emt 0:00:15]} Rf7 {[%emt 0:00:24]} 36. Ke2 {[%emt 0:00:07]} Rc8 {[%emt 0:01:41]} 37. Rc1 {[%emt 0:00:06]} Rff8 {[%emt 0:00:09]} 38. b5 {[%emt 0:03:09]} Rc7 {[%emt 0:01:49]} 39. Rc3 {[%emt 0:00:36]} Rfc8 {[%emt 0:00:30]} 40. Rec1 {[%emt 0:00:10]} Rg8 {[%emt 0:01:14]} 41. Nf2 {[%emt 0:00:26]} Rd7 {[%emt 0:00:45]} 42. Rd3 {[%emt 0:00:56]} Rc8 {[%emt 0:00:36]} 43. Nd1 {[%emt 0:01:04]} Kf7 {[%emt 0:00:32]} 44. Ne3 {[%emt 0:00:19]} Ke6 {[%emt 0:00:31]} 45. Nd5 {[%emt 0:00:28]} Bf8 {[%emt 0:00:45]} 46. a4 {[%emt 0:02:04]} Bh6 {[%emt 0:00:34]} 47. Ne3 {[%emt 0:01:38]} 1/2-1/2

[Event "7th Uppsala Young Champions"]
[Site "Uppsala"]
[Date "2020.10.24"]
[Round "3.14"]
[White "Ostlund, Joar"]
[Black "Muetsch, Annmarie"]
[Result "*"]
[ECO "E94"]
[WhiteElo "2106"]
[BlackElo "2226"]
[Annotator "RC"]
[PlyCount "41"]
[EventDate "2020.10.23"]
[EventType "swiss"]
[EventCountry "SWE"]
[SourceTitle "playchess.com"]
[Source "ChessBase"]
[SourceQuality "1"]
[TimeControl "5400+30"]

1. d4 {[%emt 0:00:00]} Nf6 {[%emt 0:00:00]} 2. c4 {[%emt 0:00:00]} g6 {[%emt 0:00:00]} 3. Nc3 {[%emt 0:00:00]} Bg7 {[%emt 0:00:00]} 4. e4 {[%emt 0:00:00]} d6 {[%emt 0:00:00]} 5. Nf3 {[%emt 0:00:12]} O-O {[%emt 0:00:13]} 6. Be2 {[%emt 0:00:21]} e5 {[%emt 0:01:35]} 7. O-O {[%emt 0:00:26]} Na6 {[%emt 0:00:10]} 8. dxe5 {[%emt 0:01:58]} dxe5 {[%emt 0:00:09]} 9. Be3 {[%emt 0:00:41]} c6 {[%emt 0:03:28]} 10. a3 {[%emt 0:05:23]} Qe7 {[%emt 0:03:32]} 11. Qc2 {[%emt 0:01:46]} Ng4 {[%emt 0:02:28]} 12. Bg5 {[%emt 0:05:53]} f6 {[%emt 0:03:07]} 13. Bd2 {[%emt 1:19:50]} Nc5 {[%emt 0:04:59]} 14. h3 {[%emt 1:18:49]} Nh6 {[%emt 0:00:10]} 15. b4 {[%emt 0:05:15]} Ne6 {[%emt 0:00:25]} 16. c5 {[%emt 0:07:26]} g5 {[%emt 0:05:53]} 17. Bc4 {[%emt 0:09:31]} Kh8 {[%emt 0:01:55]} 18. Rad1 {[%emt 0:10:42]} Qe8 {[%emt 0:05:00]} 19. Ne2 {[%emt 0:12:24]} Nf4 {[%emt 0:05:23]} 20. Bc1 Qg6 {[%emt 0:00:30]} 21. Rd6 *

[Event "7th Uppsala Young Champions"]
[Site "Uppsala"]
[Date "2020.10.25"]
[Round "4.19"]
[White "Grahn, Vidar"]
[Black "Skahlberg Bjerknes-Lima de Far, Warg"]
[Result "1/2-1/2"]
[ECO "B35"]
[WhiteElo "1864"]
[BlackElo "1759"]
[Annotator "NA RC"]
[PlyCount "145"]
[EventDate "2020.10.23"]
[EventType "swiss"]
[EventCountry "SWE"]
[SourceTitle "playchess.com"]
[Source "ChessBase"]
[SourceQuality "1"]
[TimeControl "5400+30"]

1. e4 {[%emt 0:00:00]} c5 {[%emt 0:00:00]} 2. Nf3 {[%emt 0:00:00]} g6 {[%emt 0:00:00]} 3. d4 {[%emt 0:00:00]} cxd4 {[%emt 0:00:00]} 4. Nxd4 {[%emt 0:01:15]} Nc6 {[%emt 0:00:00]} 5. Nc3 {[%emt 0:00:18]} Bg7 {[%emt 0:00:08]} 6. Be3 {[%emt 0:00:05]} Nf6 {[%emt 0:00:07]} 7. Bc4 {[%emt 0:00:07]} Qa5 {[%emt 0:02:18]} 8. O-O {[%emt 0:00:26]} O-O {[%emt 0:00:22]} 9. Bb3 {[%emt 0:00:21]} d6 {[%emt 0:03:40]} 10. f3 {[%emt 0:00:43]} Bd7 {[%emt 0:00:59]} 11. Qd2 {[%emt 0:01:55]} Rfc8 {[%emt 0:01:21]} 12. Rad1 {[%emt 0:04:25]} Ne5 {[%emt 0:09:11] B35: Sicilian: Accelerated Dragon with 5 Nc3: main line.} 13. Bh6 {[%emt 0:18:19] [#]} Qd8 $146 {[%emt 0:18:38]} ({Predecessor:} 13... Nc4 14. Bxc4 Bxh6 15. Qxh6 Rxc4 16. Nb3 Qb6+ 17. Kh1 a5 18. Rfe1 Bc6 19. Nd2 Rc5 20. Nb3 {½-½ (41) Gdanski,J (2530)-Vezzosi,P (2392) Cappelle-la-Grande 2002}) 14. Bxg7 {[%emt 0:00:57]} Kxg7 {[%emt 0:00:03]} 15. Qe2 {[%emt 0:01:43]} a6 {[%emt 0:07:56]} 16. Nd5 {[%emt 0:08:44]} Nxd5 {[%emt 0:05:23]} 17. Bxd5 {[%emt 0:00:42]} Rab8 {[%emt 0:03:52]} 18. h3 {[%emt 0:03:07]} Qb6 {[%emt 0:04:30]} 19. Kh1 {[%emt 0:06:58]} Qxb2 {[%emt 0:02:44]} 20. f4 {[%emt 0:02:40]} Nc6 {[%emt 0:00:51]} 21. Bxc6 {[%emt 0:01:47]} Bxc6 {[%emt 0:00:48]} 22. f5 {[%emt 0:00:59] [#]} Bb5 $1 {[%emt 0:04:05] Skewer} ({Don't play} 22... Qxa2 $6 23. e5 $15) 23. Nxb5 {[%emt 0:01:45]} Qxb5 {[%emt 0:02:09]} 24. Qf2 {[%emt 0:01:06]} Qc5 {[%emt 0:02:02]} (24... f6 $19 25. Rd5 Qe8) 25. Qf3 {[%emt 0:03:07]} f6 {[%emt 0:01:56]} 26. h4 {[%emt 0:05:15]} Qxc2 {[%emt 0:04:35]} 27. fxg6 {[%emt 0:04:24]} hxg6 {[%emt 0:02:08] [#]} (27... Rc4 $19 {has better winning chances.} 28. gxh7 Qxe4) 28. e5 $1 {[%emt 0:05:37]} Qf5 {[%emt 0:05:55]} (28... f5 $17 29. exd6 Rc4) 29. exf6+ {[%emt 0:01:05]} exf6 {[%emt 0:05:39]} 30. Qg3 {[%emt 0:03:00]} Qe5 {[%emt 0:01:04]} 31. Qf2 {[%emt 0:02:30]} Re8 {[%emt 0:03:20]} 32. Rde1 {[%emt 0:00:51]} Qc3 {[%emt 0:03:59]} 33. Rc1 {[%emt 0:01:25]} Qe5 {[%emt 0:00:03]} 34. Qa7 {[%emt 0:04:22]} Qe7 {[%emt 0:03:19]} 35. Qd4 {[%emt 0:01:07]} Rbc8 {[%emt 0:00:27]} 36. Rce1 {[%emt 0:01:16]} Qf7 {[%emt 0:01:20]} 37. Rb1 {[%emt 0:01:02]} (37. Rxe8 $17 Rxe8 38. Qxd6) 37... Rc4 {[%emt 0:01:12]} 38. Qf2 {[%emt 0:02:25]} b5 {[%emt 0:00:39]} 39. Rbd1 {[%emt 0:00:30]} Re6 {[%emt 0:00:44]} 40. g3 {[%emt 0:00:25]} Rce4 {[%emt 0:00:49]} 41. Qb6 {[%emt 0:01:12]} d5 {[%emt 0:00:28]} 42. Qd8 {[%emt 0:00:51]} d4 {[%emt 0:00:38]} 43. Rxd4 {[%emt 0:01:05]} Re2 {[%emt 0:00:19]} 44. Rd7 {[%emt 0:00:39]} Re7 {[%emt 0:00:29]} 45. Rfd1 {[%emt 0:00:28]} Kh6 {[%emt 0:01:38]} 46. Qh8+ {[%emt 0:00:52]} Qh7 {[%emt 0:00:08]} 47. Qxf6 {[%emt 0:01:30]} Qg7 {[%emt 0:00:53]} 48. Qg5+ {[%emt 0:06:55]} Kh7 {[%emt 0:00:02]} 49. Qg4 {[%emt 0:01:31]} Qf6 $2 {[%emt 0:01:01]} ({Don't go for} 49... Rxa2 $2 50. Rxe7 Qxe7 {[#]} 51. Rd7 $1 $18 {[%mdl 512]}) (49... R2e4 $11 50. Rxe7 Rxg4 51. Rxg7+ Kxg7 52. Rd7+ Kh6) 50. Rxe7+ $2 {[%emt 0:00:13]} (50. Qxe2 $1 $18 Qc6+ 51. Qg2 Qxd7 52. Rxd7 Rxd7 {[#]} 53. Qc6 $1 {[%mdl 512]}) 50... Rxe7 {[%emt 0:00:09]} (50... Qxe7 $2 {is the wrong capture.} 51. Rd7 $18) 51. h5 {[%emt 0:01:12]} gxh5 {[%emt 0:00:39]} 52. Qxh5+ {[%emt 0:00:08]} Kg7 {[%emt 0:00:21]} 53. Qg4+ {[%emt 0:00:39]} Qg6 {[%emt 0:00:36]} 54. Qxg6+ {[%emt 0:00:13]} Kxg6 {[%emt 0:00:01]} 55. Rd6+ {[%emt 0:00:09]} Kg5 {[%emt 0:00:10]} 56. Rxa6 {[%emt 0:00:32]} Re5 {[%emt 0:01:06]} 57. Kg2 {[%emt 0:00:26]} Kg4 {[%emt 0:00:37]} 58. Kf2 {[%emt 0:01:27]} Rf5+ {[%emt 0:00:18]} 59. Ke3 {[%emt 0:00:11]} Kxg3 {[%emt 0:01:05]} 60. Kd4 {[%emt 0:00:44]} Kf3 {[%emt 0:00:25]} 61. Kc3 {[%emt 0:01:01]} Ke4 {[%emt 0:00:31]} 62. Kb4 {[%emt 0:00:14]} Kd3 $11 {[%emt 0:00:36]} 63. Ra5 {[%emt 0:00:13]} Rf4+ {[%emt 0:00:24]} 64. Kxb5 {[%emt 0:00:11]} Rf5+ {[%emt 0:00:14]} 65. Kb6 {[%emt 0:00:17]} Rxa5 {[%emt 0:00:22]} 66. Kxa5 {[%emt 0:00:19]} Kc4 {[%emt 0:00:26]} 67. a4 {[%emt 0:00:11]} Kc5 {[%emt 0:00:11]} 68. Ka6 {[%emt 0:00:03]} Kc6 {[%emt 0:00:04]} 69. a5 {[%emt 0:00:11]} Kc7 {[%emt 0:00:14]} 70. Ka7 {[%emt 0:00:04]} Kc8 {[%emt 0:00:08]} 71. a6 {[%emt 0:00:05]} Kc7 {[%emt 0:00:07]} 72. Ka8 {[%emt 0:00:03]} Kc8 {[%emt 0:00:03]} 73. a7 {[%emt 0:00:03]} 1/2-1/2

[Event "7th Uppsala Young Champions"]
[Site "Uppsala"]
[Date "2020.10.25"]
[Round "4.20"]
[White "Buchert, Matthaus"]
[Black "Ostensson, Julia"]
[Result "0-1"]
[ECO "B23"]
[WhiteElo "1427"]
[BlackElo "1562"]
[Annotator "NA RC"]
[PlyCount "126"]
[EventDate "2020.10.23"]
[EventType "swiss"]
[EventCountry "SWE"]
[SourceTitle "playchess.com"]
[Source "ChessBase"]
[SourceQuality "1"]
[TimeControl "5400+30"]

1. e4 {[%emt 0:00:00]} c5 {[%emt 0:00:00]} 2. Nc3 {[%emt 0:00:00]} Nc6 {[%emt 0:00:00]} 3. f4 {[%emt 0:00:00]} g6 {[%emt 0:00:00]} 4. Nf3 {[%emt 0:00:01]} Bg7 {[%emt 0:00:06]} 5. Bb5 {[%emt 0:00:10]} Nd4 {[%emt 0:00:09]} 6. O-O {[%emt 0:00:19]} Nxb5 {[%emt 0:01:53]} 7. Nxb5 {[%emt 0:00:10]} a6 {[%emt 0:06:34]} 8. Nc3 {[%emt 0:00:26]} d6 {[%emt 0:00:55]} 9. d3 {[%emt 0:01:37]} Nf6 {[%emt 0:03:27]} 10. Qe1 {[%emt 0:04:05]} O-O {[%emt 0:01:04]} 11. Qh4 {[%emt 0:04:55]} b5 {[%emt 0:28:45]} 12. f5 {[%emt 0:17:37]} b4 {[%emt 0:28:02]} 13. Ne2 {[%emt 0:07:53]} Qd7 {[%emt 0:07:47]} 14. Bh6 {[%emt 0:16:46]} Bb7 {[%emt 0:06:07]} 15. Ng5 {[%emt 0:06:32]} e5 {[%emt 0:06:49]} 16. Bxg7 {[%emt 0:11:12]} Kxg7 {[%emt 0:00:14]} 17. fxg6 {[%emt 0:02:19]} hxg6 {[%emt 0:05:13]} 18. Rxf6 {[%emt 0:01:23]} Kxf6 {[%emt 0:00:18]} 19. Rf1+ {[%emt 0:02:52]} Ke7 {[%emt 0:00:11]} 20. Nh7+ {[%emt 0:00:41]} f6 {[%emt 0:01:20]} 21. Nxf8 {[%emt 0:16:16]} Rxf8 {[%emt 0:00:07]} 22. b3 {[%emt 0:00:52]} Qe6 {[%emt 0:00:30]} 23. Qh7+ {[%emt 0:02:02]} Qf7 {[%emt 0:00:09]} 24. Qxf7+ {[%emt 0:00:13]} Rxf7 {[%emt 0:00:04]} 25. g4 {[%emt 0:00:26]} d5 {[%emt 0:00:23]} 26. Ng3 {[%emt 0:00:54]} a5 {[%emt 0:02:07]} 27. h4 {[%emt 0:01:18]} dxe4 {[%emt 0:00:37]} 28. Nxe4 {[%emt 0:01:42]} Bxe4 {[%emt 0:00:06]} 29. dxe4 {[%emt 0:00:01]} Rh7 {[%emt 0:00:07]} 30. g5 {[%emt 0:00:54]} Rxh4 {[%emt 0:01:17]} 31. gxf6+ {[%emt 0:00:34]} Kf7 {[%emt 0:00:16]} 32. Re1 {[%emt 0:00:41]} Kxf6 {[%emt 0:00:22]} 33. Kg2 {[%emt 0:00:22]} Kg5 {[%emt 0:00:47]} 34. Kg3 {[%emt 0:00:12]} Rg4+ {[%emt 0:00:26]} 35. Kf3 {[%emt 0:00:23]} Rf4+ {[%emt 0:00:17]} 36. Kg3 {[%emt 0:00:15]} Kf6 {[%emt 0:00:46]} 37. Kg2 {[%emt 0:01:24]} g5 {[%emt 0:00:39]} 38. Kg3 {[%emt 0:00:16]} Ke6 {[%emt 0:00:28]} 39. Kg2 {[%emt 0:01:06]} Rg4+ {[%emt 0:00:28]} 40. Kf3 {[%emt 0:00:16]} Rf4+ {[%emt 0:00:32]} 41. Kg2 {[%emt 0:00:04]} Kf6 {[%emt 0:00:31]} 42. Kg3 {[%emt 0:01:09]} Kg6 {[%emt 0:00:29]} 43. Kg2 {[%emt 0:00:11]} g4 {[%emt 0:00:28]} 44. Re2 {[%emt 0:00:55]} Kg5 {[%emt 0:00:20]} 45. Re3 {[%emt 0:00:28]} Kh4 {[%emt 0:00:43]} 46. Re1 {[%emt 0:00:29]} Kg5 {[%emt 0:00:32]} 47. Re3 {[%emt 0:00:17]} Kh4 {[%emt 0:00:28]} 48. Re1 {[%emt 0:00:20]} g3 {[%emt 0:00:32]} 49. Re2 {[%emt 0:00:59]} Kg4 {[%emt 0:00:22]} 50. Rd2 {[%emt 0:00:31]} Rxe4 {[%emt 0:00:36]} 51. Rd5 {[%emt 0:00:29]} Re2+ {[%emt 0:00:17]} 52. Kf1 {[%emt 0:00:07]} Kf3 {[%emt 0:00:47]} 53. Rd3+ {[%emt 0:00:53]} Re3 {[%emt 0:00:10]} 54. Rd2 {[%emt 0:00:14]} e4 {[%emt 0:00:34]} 55. Rg2 {[%emt 0:00:17]} Re1+ {[%emt 0:00:28]} 56. Kxe1 {[%emt 0:00:16]} Kxg2 {[%emt 0:00:05]} 57. c4 {[%emt 0:00:40]} Kh2 {[%emt 0:00:13]} 58. a4 {[%emt 0:00:21]} g2 {[%emt 0:00:26]} 59. Kd1 {[%emt 0:00:31]} g1=Q+ {[%emt 0:00:08]} 60. Kc2 {[%emt 0:00:06]} Qf2+ {[%emt 0:00:16]} 61. Kb1 {[%emt 0:00:06]} e3 {[%emt 0:00:26]} 62. Ka1 {[%emt 0:00:05]} e2 {[%emt 0:00:04]} 63. Kb1 {[%emt 0:00:04]} e1=Q# {[%emt 0:00:05]} 0-1

[Event "7th Uppsala Young Champions"]
[Site "Uppsala"]
[Date "2020.10.26"]
[Round "5.11"]
[White "Nilsson, Joakim"]
[Black "Frank, Adam"]
[Result "0-1"]
[ECO "E70"]
[WhiteElo "2224"]
[BlackElo "2129"]
[Annotator "RC"]
[PlyCount "178"]
[EventDate "2020.10.23"]
[EventType "swiss"]
[EventCountry "SWE"]
[SourceTitle "playchess.com"]
[Source "ChessBase"]
[SourceQuality "1"]
[TimeControl "5400+30"]

1. d4 {[%emt 0:00:00]} Nf6 {[%emt 0:00:00]} 2. c4 {[%emt 0:00:00]} g6 {[%emt 0:00:00]} 3. Nc3 {[%emt 0:00:00]} Bg7 {[%emt 0:00:00]} 4. e4 {[%emt 0:00:00]} d6 {[%emt 0:00:00]} 5. Bd3 {[%emt 0:00:01]} O-O {[%emt 0:00:00]} 6. Nge2 {[%emt 0:00:05]} Nc6 {[%emt 0:00:00]} 7. O-O {[%emt 0:00:10]} Nd7 {[%emt 0:00:18]} 8. Be3 {[%emt 0:01:32]} e5 {[%emt 0:00:06]} 9. d5 {[%emt 0:00:07]} Nd4 {[%emt 0:00:03]} 10. f4 {[%emt 0:10:07]} Nxe2+ {[%emt 0:02:11]} 11. Bxe2 {[%emt 0:02:57]} exf4 {[%emt 0:00:12]} 12. Bxf4 {[%emt 0:00:04]} h6 {[%emt 0:19:12]} 13. Qd2 {[%emt 0:02:40]} Kh7 {[%emt 0:00:05]} 14. Rae1 {[%emt 0:00:53]} Ne5 {[%emt 0:02:09]} 15. Kh1 {[%emt 0:07:12]} Qe7 {[%emt 0:06:41]} 16. b3 {[%emt 0:02:01]} Bd7 {[%emt 0:00:25]} 17. Nb5 {[%emt 0:04:33]} a6 {[%emt 0:06:06]} 18. Nd4 {[%emt 0:01:38]} c5 {[%emt 0:19:51]} 19. Nf3 {[%emt 0:01:30]} b5 {[%emt 0:01:06]} 20. Nxe5 {[%emt 0:02:21]} Bxe5 {[%emt 0:00:08]} 21. Bxe5 {[%emt 0:01:22]} Qxe5 {[%emt 0:00:10]} 22. Rf4 {[%emt 0:02:26]} Rae8 {[%emt 0:03:12]} 23. Ref1 {[%emt 0:04:42]} Kg7 {[%emt 0:01:37]} 24. Bd3 {[%emt 0:09:08]} b4 {[%emt 0:02:33]} 25. Qf2 {[%emt 0:01:39]} Re7 {[%emt 0:00:12]} 26. h3 {[%emt 0:06:54]} a5 {[%emt 0:00:44]} 27. Bc2 {[%emt 0:00:59]} f6 {[%emt 0:01:50]} 28. Rf3 {[%emt 0:03:36]} Ref7 {[%emt 0:00:11]} 29. Re3 {[%emt 0:02:13]} Ra8 {[%emt 0:00:55]} 30. a4 {[%emt 0:03:51]} bxa3 {[%emt 0:00:19]} 31. Qe1 {[%emt 0:00:12]} Qd4 {[%emt 0:20:39]} 32. Rd3 {[%emt 0:01:11]} Qb2 {[%emt 0:00:03]} 33. Qc3 {[%emt 0:06:32]} a4 {[%emt 0:00:47]} 34. Rb1 {[%emt 0:03:05]} Qxc3 {[%emt 0:01:52]} 35. Rxc3 {[%emt 0:00:03]} axb3 {[%emt 0:00:16]} 36. Bxb3 {[%emt 0:01:24]} Be8 {[%emt 0:01:51]} 37. Ba2 {[%emt 0:01:53]} Re7 {[%emt 0:01:49]} 38. Rbb3 {[%emt 0:01:56]} Rxe4 {[%emt 0:02:57]} 39. Rxa3 {[%emt 0:00:04]} Rxa3 {[%emt 0:01:04]} 40. Rxa3 {[%emt 0:00:03]} Re1+ {[%emt 0:00:38]} 41. Kh2 {[%emt 0:00:34]} Ra1 {[%emt 0:00:09]} 42. Re3 {[%emt 0:01:02]} Kf7 {[%emt 0:00:59]} 43. Re2 {[%emt 0:00:19]} Bd7 {[%emt 0:00:11]} 44. Rb2 {[%emt 0:00:52]} f5 {[%emt 0:00:35]} 45. Rb7 {[%emt 0:01:11]} Ke8 {[%emt 0:00:19]} 46. Bb1 {[%emt 0:00:29]} Ra4 {[%emt 0:01:30]} 47. Bd3 {[%emt 0:00:30]} Rb4 {[%emt 0:00:02]} 48. Ra7 {[%emt 0:00:16]} Rb3 {[%emt 0:00:48]} 49. Be2 {[%emt 0:00:51]} Rb2 {[%emt 0:00:04]} 50. Bf1 {[%emt 0:00:48]} f4 {[%emt 0:00:56]} 51. Ra3 {[%emt 0:01:27]} Bf5 {[%emt 0:00:39]} 52. Kg1 {[%emt 0:02:34]} Ke7 {[%emt 0:01:25]} 53. Ra8 {[%emt 0:03:15]} Kf6 {[%emt 0:02:13]} 54. Re8 {[%emt 0:00:27]} Ra2 {[%emt 0:01:19]} 55. Rh8 {[%emt 0:01:58]} h5 {[%emt 0:00:37]} 56. Re8 {[%emt 0:00:56]} Ra7 {[%emt 0:02:04]} 57. h4 {[%emt 0:00:33]} Re7 {[%emt 0:00:14]} 58. Rd8 {[%emt 0:00:15]} Ke5 {[%emt 0:00:03]} 59. Kf2 {[%emt 0:00:15]} Rd7 {[%emt 0:00:19]} 60. Re8+ {[%emt 0:00:16]} Kd4 {[%emt 0:00:08]} 61. Rf8 {[%emt 0:01:06]} Ra7 {[%emt 0:00:56]} 62. Rd8 {[%emt 0:00:46]} Ra2+ {[%emt 0:00:16]} 63. Kg1 {[%emt 0:00:26]} Ra1 {[%emt 0:01:06]} 64. Kf2 {[%emt 0:00:02]} Ra2+ {[%emt 0:00:01]} 65. Kg1 {[%emt 0:00:01]} Ra6 {[%emt 0:01:04]} 66. Rf8 {[%emt 0:00:11]} Ke3 {[%emt 0:00:13]} 67. Rb8 {[%emt 0:00:33]} Ra1 {[%emt 0:00:42]} 68. Rb3+ {[%emt 0:00:11]} Kd4 {[%emt 0:00:02]} 69. Kf2 {[%emt 0:00:34]} Ra2+ {[%emt 0:00:34]} 70. Kg1 {[%emt 0:00:02]} Rd2 {[%emt 0:00:16]} 71. Rf3 {[%emt 0:00:43]} Ke4 {[%emt 0:00:15]} 72. Rb3 {[%emt 0:00:17]} Kd4 {[%emt 0:00:03]} 73. Rf3 {[%emt 0:00:08]} Ke5 {[%emt 0:00:02]} 74. Rb3 {[%emt 0:00:17]} Be4 {[%emt 0:00:15]} 75. Ra3 {[%emt 0:02:25]} Bf5 {[%emt 0:00:39]} 76. Rb3 {[%emt 0:00:31]} Be4 {[%emt 0:01:44]} 77. Ra3 {[%emt 0:00:02]} Kd4 {[%emt 0:00:03]} 78. Ra6 {[%emt 0:01:21]} Bd3 {[%emt 0:00:32]} 79. Bxd3 {[%emt 0:00:08]} Kxd3 {[%emt 0:00:03]} 80. Rxd6 {[%emt 0:00:32]} Kxc4 {[%emt 0:00:03]} 81. Rxg6 {[%emt 0:01:05]} Rxd5 {[%emt 0:00:04]} 82. Kf2 {[%emt 0:00:37]} Kd3 {[%emt 0:00:14]} 83. Rg5 {[%emt 0:01:13]} Ke4 {[%emt 0:00:17]} 84. Rg8 {[%emt 0:00:12]} c4 {[%emt 0:00:45]} 85. Rc8 {[%emt 0:00:16]} Kd3 {[%emt 0:00:11]} 86. Kf3 {[%emt 0:00:39]} Rd4 {[%emt 0:00:16]} 87. g4 {[%emt 0:02:12]} fxg3 {[%emt 0:00:13]} 88. Kxg3 {[%emt 0:00:02]} c3 {[%emt 0:00:04]} 89. Kf3 {[%emt 0:00:36]} c2 {[%emt 0:06:51]} 0-1

[Event "7th Uppsala Young Champions"]
[Site "Uppsala"]
[Date "2020.10.26"]
[Round "5.13"]
[White "Nilssen, Ellen Fredericia"]
[Black "Trost, Edvin"]
[Result "0-1"]
[ECO "E73"]
[WhiteElo "2209"]
[BlackElo "2202"]
[Annotator "RC"]
[PlyCount "82"]
[EventDate "2020.10.23"]
[EventType "swiss"]
[EventCountry "SWE"]
[SourceTitle "playchess.com"]
[Source "ChessBase"]
[SourceQuality "1"]
[TimeControl "5400+30"]

1. d4 {[%emt 0:01:33]} Nf6 {[%emt 0:00:00]} 2. c4 {[%emt 0:00:24]} g6 {[%emt 0:00:00]} 3. Nc3 {[%emt 0:00:48]} Bg7 {[%emt 0:00:12]} 4. e4 {[%emt 0:01:29]} d6 {[%emt 0:00:05]} 5. Be2 {[%emt 0:00:06]} O-O {[%emt 0:00:23]} 6. Bg5 {[%emt 0:00:07]} Na6 {[%emt 0:00:48]} 7. Qd2 {[%emt 0:00:15]} e5 {[%emt 0:00:57]} 8. d5 {[%emt 0:02:04]} Qe8 {[%emt 1:31:35]} 9. Bd1 {[%emt 1:27:44]} Nh5 {[%emt 0:00:30]} 10. Nge2 {[%emt 0:00:00]} f5 {[%emt 0:00:00]} 11. exf5 {[%emt 0:00:00]} gxf5 {[%emt 0:00:00]} 12. Bc2 {[%emt 0:00:00]} Nb4 {[%emt 0:00:00]} 13. Bb1 {[%emt 0:00:00]} e4 {[%emt 0:00:00]} 14. a3 {[%emt 0:00:00]} Nd3+ {[%emt 0:00:00]} 15. Bxd3 {[%emt 0:00:00]} exd3 {[%emt 0:00:00]} 16. Qxd3 {[%emt 0:00:00]} f4 {[%emt 0:00:00]} 17. f3 {[%emt 0:00:00]} Bf5 {[%emt 0:00:00]} 18. Qd2 {[%emt 0:00:00]} Qg6 {[%emt 0:00:00]} 19. g4 {[%emt 0:00:00]} Qxg5 {[%emt 0:00:00]} 20. h4 {[%emt 0:00:00]} Qg6 {[%emt 0:00:00]} 21. gxf5 {[%emt 0:00:00]} Qg2 {[%emt 0:00:00]} 22. O-O-O {[%emt 0:00:00]} Qxf3 {[%emt 0:00:00]} 23. Rdf1 {[%emt 0:00:00]} Qe3 {[%emt 0:00:00]} 24. Qxe3 {[%emt 0:00:00]} fxe3 {[%emt 0:00:00]} 25. Rhg1 {[%emt 0:00:00]} Kh8 {[%emt 0:00:00]} 26. Nb5 {[%emt 0:00:00]} Rf7 {[%emt 0:00:00]} 27. Nbd4 {[%emt 0:00:00]} c6 {[%emt 0:00:00]} 28. dxc6 {[%emt 0:00:00]} Rc8 {[%emt 0:00:00]} 29. Ne6 {[%emt 0:00:00]} Rxc6 {[%emt 0:00:00]} 30. b3 {[%emt 0:00:00]} Rc8 {[%emt 0:00:00]} 31. Rg5 {[%emt 0:00:00]} Nf6 {[%emt 0:00:00]} 32. Nxg7 {[%emt 0:00:00]} Rxg7 {[%emt 0:00:00]} 33. Nc3 {[%emt 0:00:00]} d5 {[%emt 0:00:00]} 34. Rd1 {[%emt 0:02:15]} dxc4 {[%emt 0:00:00]} 35. bxc4 {[%emt 0:00:08]} Rgc7 {[%emt 0:00:47]} 36. Nb5 {[%emt 0:03:01]} Rxc4+ {[%emt 0:00:37]} 37. Kb1 {[%emt 0:00:04]} e2 {[%emt 0:00:20]} 38. Rdg1 {[%emt 0:02:41]} Rc1+ {[%emt 0:00:16]} 39. Kb2 {[%emt 0:00:57]} e1=Q {[%emt 0:00:13]} 40. Rxe1 {[%emt 0:00:14]} Rxe1 {[%emt 0:00:05]} 41. Nd6 {[%emt 0:00:06]} Rf8 {[%emt 0:00:28]} 0-1